[Event "Allsvenskan Div II 5 2023/2024: SS Manhem III - Lidkopings SS"]
[Site "Goteborgs schackcentrum, Vegatan 20, Gothenburg, Sweden"]
[Date "2023.10.22"]
[Round "1.5"]
[White "Koski, Viljo"]
[Black "Eldh, Hjalmar"]
[Result "0-1"]
[TimeControl "90 minutes for 40 moves + 30 minutes for the rest of the game + 30 seconds per move from move one."]
[WhiteFideId "1717553"]
[BlackFideId "1767968"]
[WhiteElo "1865"]
[BlackElo "1758"]

1. d4 {[%clk 01:30:51]} {[%emt 00:00:08]} Nf6 {[%clk 01:16:07]} {[%emt
00:14:53]} 2. c4 {[%clk 01:30:39]} {[%emt 00:00:43]} g6 {[%clk 01:16:24]}
{[%emt 00:00:13]} 3. Nf3 {[%clk 01:30:51]} {[%emt 00:00:17]} Bg7 {[%clk
01:16:39]} {[%emt 00:00:16]} 4. Nc3 {[%clk 01:31:06]} {[%emt 00:00:15]} d5
{[%clk 01:16:53]} {[%emt 00:00:15]} 5. h3 {[%clk 01:30:59]} {[%emt 00:00:38]}
c5 {[%clk 01:14:41]} {[%emt 00:02:41]} 6. Bf4 {[%clk 01:21:10]} {[%emt
00:10:20]} O-O {[%clk 01:13:39]} {[%emt 00:01:31]} 7. e3 {[%clk 01:21:04]}
{[%emt 00:00:36]} Nc6 {[%clk 01:12:39]} {[%emt 00:01:31]} 8. Be2 {[%clk
01:16:16]} {[%emt 00:05:18]} cxd4 {[%clk 01:10:35]} {[%emt 00:02:33]} 9. Nxd4
{[%clk 01:12:58]} {[%emt 00:03:49]} Nxd4 {[%clk 01:03:02]} {[%emt 00:08:02]} 10.
Qxd4 {[%clk 01:02:31]} {[%emt 00:10:57]} Qa5 {[%clk 00:57:54]} {[%emt
00:05:38]} 11. O-O {[%clk 00:54:46]} {[%emt 00:08:16]} Be6 {[%clk 00:50:42]}
{[%emt 00:07:41]} 12. b4 {[%clk 00:36:59]} {[%emt 00:18:18]} Qxb4 {[%clk
00:44:57]} {[%emt 00:06:15]} 13. Rab1 {[%clk 00:37:03]} {[%emt 00:00:25]} Qa5
{[%emt 00:00:59]} 14. Rb5 {[%clk 00:34:30]} {[%emt 00:03:01]} Qd8 {[%clk
00:44:23]} {[%emt 00:00:36]} 15. cxd5 {[%clk 00:26:51]} {[%emt 00:08:11]} Nxd5
{[%clk 00:43:07]} {[%emt 00:01:46]} 16. Be5 {[%clk 00:26:38]} {[%emt 00:00:43]}
Nxc3 {[%clk 00:42:24]} {[%emt 00:01:12]} 17. Qxc3 {[%clk 00:26:48]} {[%emt
00:00:20]} Bxe5 {[%clk 00:41:41]} {[%emt 00:01:13]} 18. Qxe5 {[%clk 00:26:24]}
{[%emt 00:00:54]} b6 {[%clk 00:36:25]} {[%emt 00:05:44]} 19. Rd1 {[%clk
00:25:09]} {[%emt 00:01:48]} Qb8 {[%clk 00:36:42]} {[%emt 00:00:10]} 20. Qb2
{[%clk 00:19:39]} {[%emt 00:06:02]} Rd8 {[%clk 00:34:35]} {[%emt 00:02:35]} 21.
Rc1 {[%clk 00:17:56]} {[%emt 00:02:16]} Qd6 {[%clk 00:32:21]} {[%emt 00:02:42]}
22. Rd1 {[%clk 00:17:43]} {[%emt 00:00:44]} Qc6 {[%clk 00:31:37]} {[%emt
00:01:13]} 23. Rc1 {[%clk 00:16:55]} {[%emt 00:01:20]} Qe8 {[%clk 00:31:58]}
{[%emt 00:00:07]} 24. Rb4 {[%clk 00:16:45]} {[%emt 00:00:41]} Rac8 {[%clk
00:31:41]} {[%emt 00:00:46]} 25. Ba6 {[%clk 00:16:17]} {[%emt 00:01:00]} Rxc1+
{[%clk 00:31:44]} {[%emt 00:00:27]} 26. Qxc1 {[%clk 00:16:35]} {[%emt
00:00:11]} Bxa2 {[%clk 00:29:17]} {[%emt 00:02:57]} 27. Bb5 {[%clk 00:15:55]}
{[%emt 00:01:10]} Qf8 {[%clk 00:28:32]} {[%emt 00:01:15]} 28. Qa1 {[%clk
00:08:53]} {[%emt 00:07:32]} Rd2 {[%clk 00:26:52]} {[%emt 00:02:10]} 29. Rd4
{[%clk 00:08:44]} {[%emt 00:00:39]} Rxd4 {[%clk 00:25:14]} {[%emt 00:02:08]} 30.
exd4 {[%clk 00:09:03]} {[%emt 00:00:11]} Bb3 {[%clk 00:23:56]} {[%emt
00:01:49]} 31. Qxa7 {[%clk 00:07:30]} {[%emt 00:02:02]} Qd8 {[%clk 00:24:20]}
{[%emt 00:00:05]} 32. Qa3 {[%clk 00:06:17]} {[%emt 00:01:43]} Qd5 {[%clk
00:24:28]} {[%emt 00:00:19]} 33. Qb4 {[%clk 00:05:57]} {[%emt 00:00:54]} Bc2
{[%clk 00:23:08]} {[%emt 00:01:49]} 34. Be2 {[%clk 00:05:59]} {[%emt 00:00:29]}
Qa5 {[%clk 00:22:58]} {[%emt 00:00:38]} 35. Qxe7 {[%clk 00:05:28]} {[%emt
00:01:02]} Qe1+ {[%clk 00:22:46]} {[%emt 00:00:43]} 36. Kh2 {[%clk 00:05:41]}
{[%emt 00:00:18]} Qxf2 {[%clk 00:22:44]} {[%emt 00:00:31]} 37. Qe8+ {[%clk
00:05:40]} {[%emt 00:00:31]} Kg7 {[%clk 00:23:05]} {[%emt 00:00:09]} 38. Qe5+
{[%clk 00:05:36]} {[%emt 00:00:34]} Qf6 {[%clk 00:23:05]} {[%emt 00:00:28]} 39.
Qc7 {[%clk 00:05:17]} {[%emt 00:00:51]} Be4 {[%clk 00:22:28]} {[%emt 00:01:05]}
40. Qe5 {[%clk 00:01:38]} {[%emt 00:04:11]} Qxe5+ {[%clk 00:22:30]} {[%emt
00:00:29]} 41. dxe5 {[%clk 00:01:58]} {[%emt 00:00:09]} g5 {[%clk 00:22:52]}
{[%emt 00:00:09]} 42. Bc4 {[%clk 00:26:21]} {[%emt 00:06:06]} Bc6 {[%clk
00:51:32]} {[%emt 00:01:50]} 43. g4 {[%clk 00:24:39]} {[%emt 00:02:12]} Ba4
{[%clk 00:51:52]} {[%emt 00:00:10]} 44. Bd3 {[%clk 00:23:52]} {[%emt 00:01:17]}
b5 {[%clk 00:52:12]} {[%emt 00:00:11]} 45. Kg3 {[%clk 00:23:40]} {[%emt
00:00:41]} b4 {[%clk 00:52:28]} {[%emt 00:00:14]} 46. Kf2 {[%clk 00:22:21]}
{[%emt 00:01:49]} h5 {[%clk 00:51:53]} {[%emt 00:01:05]} 47. gxh5 {[%clk
00:11:21]} {[%emt 00:11:31]} Kh6 {[%clk 00:52:13]} {[%emt 00:00:10]} 48. Kg3
{[%clk 00:11:15]} {[%emt 00:00:37]} b3 {[%clk 00:51:48]} {[%emt 00:00:53]} 49.
h4 {[%clk 00:10:43]} {[%emt 00:01:04]} gxh4+ {[%clk 00:51:56]} {[%emt
00:00:21]} 50. Kxh4 {[%clk 00:11:04]} {[%emt 00:00:09]} b2 {[%clk 00:52:20]}
{[%emt 00:00:05]} 51. Kg3 {[%clk 00:10:24]} {[%emt 00:01:11]} Bd1 {[%clk
00:52:41]} {[%emt 00:00:08]} 52. Kf4 {[%clk 00:09:59]} {[%emt 00:00:56]} Bxh5
{[%clk 00:53:00]} {[%emt 00:00:11]} 53. Bb1 {[%clk 00:10:08]} {[%emt 00:00:20]}
Bg6 {[%clk 00:53:18]} {[%emt 00:00:13]} 54. Ba2 {[%clk 00:10:16]} {[%emt
00:00:22]} b1=Q {[%clk 00:53:38]} {[%emt 00:00:10]} 55. Bxb1 {[%clk 00:10:39]}
{[%emt 00:00:06]} Bxb1 {[%clk 00:54:01]} {[%emt 00:00:07]} 56. e6 {[%clk
00:10:12]} {[%emt 00:00:58]} fxe6 {[%clk 00:54:21]} {[%emt 00:00:09]} 57. Ke5
{[%clk 00:10:36]} {[%emt 00:00:07]} Ba2 {[%clk 00:54:43]} {[%emt 00:00:08]} 58.
Kf6 {[%clk 00:10:43]} {[%emt 00:00:23]} Kh5 {[%clk 00:55:02]} {[%emt 00:00:10]}
59. Ke5 {[%clk 00:10:45]} {[%emt 00:00:28]} Kg5 {[%clk 00:55:25]} {[%emt
00:00:07]} 60. Ke4 {[%clk 00:11:04]} {[%emt 00:00:11]} Kf6 {[%clk 00:55:50]}
{[%emt 00:00:06]} 61. Kf4 {[%clk 00:11:25]} {[%emt 00:00:08]} e5+ {[%clk
00:56:13]} {[%emt 00:00:07]} 62. Ke4 {[%clk 00:11:35]} {[%emt 00:00:21]} Bb1+
{[%clk 00:56:38]} {[%emt 00:00:05]} 63. Ke3 {[%clk 00:11:51]} {[%emt 00:00:14]}
Kf5 {[%clk 00:57:02]} {[%emt 00:00:05]} 64. Kf3 {[%clk 00:12:16]} {[%emt
00:00:06]} Bc2 {[%clk 00:57:14]} {[%emt 00:00:17]} 65. Ke3 {[%clk 00:11:42]}
{[%emt 00:01:04]} e4 {[%clk 00:57:24]} {[%emt 00:00:19]} 66. Ke2 {[%clk
00:11:31]} {[%emt 00:00:42]} Kf4 {[%clk 00:57:48]} {[%emt 00:00:05]} 67. Kf2
{[%clk 00:11:56]} {[%emt 00:00:06]} e3+ {[%clk 00:58:06]} {[%emt 00:00:12]} 68.
Ke2 {[%clk 00:12:09]} {[%emt 00:00:17]} Ke4 {[%clk 00:58:29]} {[%emt 00:00:06]}
69. Kf1 {[%clk 00:11:26]} {[%emt 00:01:13]} Kd3 {[%clk 00:58:51]} 0-1

[Event "Allsvenskan Div II 5 2023/2024: SS Manhem III - Lidkopings SS"]
[Site "Goteborgs schackcentrum, Vegatan 20, Gothenburg, Sweden"]
[Date "2023.10.22"]
[Round "1.6"]
[White "Gallardo, Guillermo"]
[Black "Stolt, Hans-Olof"]
[Result "1/2-1/2"]
[TimeControl "90 minutes for 40 moves + 30 minutes for the rest of the game + 30 seconds per move from move one."]
[WhiteFideId "1773488"]
[BlackFideId "1720368"]
[WhiteElo "1622"]
[BlackElo "1858"]

1. Nf3 {[%clk 01:30:55]} {[%emt 00:00:04]} d6 {[%clk 01:30:21]} {[%emt
00:00:40]} 2. d4 {[%clk 01:30:12]} {[%emt 00:01:13]} Nf6 {[%clk 01:30:15]}
{[%emt 00:00:36]} 3. g3 {[%clk 01:30:02]} {[%emt 00:00:40]} g6 {[%clk
01:29:11]} {[%emt 00:01:34]} 4. Bg2 {[%clk 01:30:12]} {[%emt 00:00:20]} Bg7
{[%clk 01:29:39]} {[%emt 00:00:01]} 5. O-O {[%clk 01:30:25]} {[%emt 00:00:18]}
O-O {[%clk 01:30:06]} {[%emt 00:00:02]} 6. c4 {[%clk 01:28:44]} {[%emt
00:02:11]} Nbd7 {[%clk 01:27:42]} {[%emt 00:02:54]} 7. Nc3 {[%clk 01:26:14]}
{[%emt 00:03:00]} c6 {[%clk 01:26:22]} {[%emt 00:01:50]} 8. Qc2 {[%clk
01:22:56]} {[%emt 00:03:48]} Qc7 {[%clk 01:09:11]} {[%emt 00:17:41]} 9. e4
{[%clk 01:15:18]} {[%emt 00:08:08]} e5 {[%clk 00:58:06]} {[%emt 00:11:36]} 10.
b3 {[%clk 01:04:30]} {[%emt 00:11:18]} exd4 {[%clk 00:52:05]} {[%emt 00:06:31]}
11. Nxd4 {[%clk 01:02:52]} {[%emt 00:02:08]} a5 {[%clk 00:48:45]} {[%emt
00:03:50]} 12. Rd1 {[%clk 00:55:33]} {[%emt 00:07:47]} Rd8 {[%clk 00:47:19]}
{[%emt 00:01:57]} 13. Bb2 {[%clk 00:47:07]} {[%emt 00:08:57]} Ne8 {[%clk
00:45:00]} {[%emt 00:02:48]} 14. Rac1 {[%clk 00:41:37]} {[%emt 00:06:00]} Nc5
{[%clk 00:42:35]} {[%emt 00:02:56]} 15. Nce2 {[%clk 00:33:38]} {[%emt
00:08:28]} Qe7 {[%clk 00:35:02]} {[%emt 00:08:03]} 16. Re1 {[%clk 00:28:56]}
{[%emt 00:05:11]} Nc7 {[%clk 00:27:13]} {[%emt 00:08:20]} 17. Rcd1 {[%clk
00:27:01]} {[%emt 00:02:26]} N7e6 {[%clk 00:19:57]} {[%emt 00:07:46]} 18. f4
{[%clk 00:21:25]} {[%emt 00:06:05]} Nxd4 {[%clk 00:20:00]} {[%emt 00:00:28]} 19.
Bxd4 {[%clk 00:19:43]} {[%emt 00:02:11]} Bxd4+ {[%clk 00:20:02]} {[%emt
00:00:28]} 20. Nxd4 {[%clk 00:19:33]} {[%emt 00:00:41]} Bg4 {[%clk 00:19:56]}
{[%emt 00:00:36]} 21. Bf3 {[%clk 00:12:00]} {[%emt 00:08:02]} Bxf3 {[%clk
00:19:27]} {[%emt 00:01:00]} 22. Nxf3 {[%clk 00:12:03]} {[%emt 00:00:27]} f6
{[%clk 00:16:54]} {[%emt 00:03:01]} 1/2-1/2

[Event "Allsvenskan Div II 5 2023/2024: SS Manhem III - Lidkopings SS"]
[Site "Goteborgs schackcentrum, Vegatan 20, Gothenburg, Sweden"]
[Date "2023.10.22"]
[Round "1.7"]
[White "Beslagic, Smail"]
[Black "Hassinge, Ove"]
[Result "1-0"]
[TimeControl "90 minutes for 40 moves + 30 minutes for the rest of the game + 30 seconds per move from move one."]
[WhiteFideId "1734792"]
[BlackFideId "1774530"]
[WhiteElo "1842"]
[BlackElo "1559"]

1. d4 {[%clk 01:30:57]} {[%emt 00:00:04]} Nf6 {[%clk 01:30:31]} {[%emt
00:00:29]} 2. Bf4 {[%clk 01:31:09]} {[%emt 00:00:17]} d5 {[%clk 01:30:37]}
{[%emt 00:00:24]} 3. e3 {[%clk 01:31:25]} {[%emt 00:00:15]} c5 {[%clk
01:29:47]} {[%emt 00:01:22]} 4. c3 {[%clk 01:30:52]} {[%emt 00:01:02]} Qb6
{[%clk 01:27:09]} {[%emt 00:03:09]} 5. Qb3 {[%clk 01:30:20]} {[%emt 00:00:59]}
c4 {[%clk 01:22:45]} {[%emt 00:04:56]} 6. Qxb6 {[%clk 01:27:55]} {[%emt
00:02:54]} axb6 {[%clk 01:23:03]} {[%emt 00:00:12]} 7. Na3 {[%clk 01:27:49]}
{[%emt 00:00:34]} Bd7 {[%clk 01:14:34]} {[%emt 00:09:01]} 8. Nf3 {[%clk
01:25:16]} {[%emt 00:03:04]} e6 {[%clk 01:14:12]} {[%emt 00:00:51]} 9. Nc2
{[%clk 01:25:33]} {[%emt 00:00:12]} Be7 {[%clk 01:12:44]} {[%emt 00:02:00]} 10.
Be2 {[%clk 01:25:22]} {[%emt 00:00:27]} O-O {[%clk 01:12:09]} {[%emt 00:01:18]}
11. O-O {[%clk 01:24:50]} {[%emt 00:01:02]} Nc6 {[%clk 01:09:53]} {[%emt
00:02:47]} 12. Nd2 {[%clk 01:19:28]} {[%emt 00:05:49]} b5 {[%clk 01:07:21]}
{[%emt 00:03:05]} 13. a3 {[%clk 01:18:04]} {[%emt 00:01:52]} Ne4 {[%clk
01:03:34]} {[%emt 00:04:18]} 14. Nxe4 {[%clk 01:14:17]} {[%emt 00:04:16]} dxe4
{[%clk 01:03:51]} {[%emt 00:00:09]} 15. f3 {[%clk 01:14:11]} {[%emt 00:00:40]}
f5 {[%clk 00:55:59]} {[%emt 00:08:23]} 16. fxe4 {[%clk 01:13:11]} {[%emt
00:01:30]} fxe4 {[%clk 00:56:16]} {[%emt 00:00:13]} 17. Bg3 {[%clk 01:10:33]}
{[%emt 00:03:07]} Na5 {[%clk 00:56:11]} {[%emt 00:00:36]} 18. Bg4 {[%clk
01:09:48]} {[%emt 00:01:14]} Nb3 {[%clk 00:55:11]} {[%emt 00:01:31]} 19. Rad1
{[%clk 01:09:57]} {[%emt 00:00:18]} Rad8 {[%clk 00:49:57]} {[%emt 00:05:47]} 20.
Rxf8+ {[%clk 01:08:21]} {[%emt 00:02:05]} Bxf8 {[%clk 00:45:15]} {[%emt
00:05:13]} 21. Kf2 {[%clk 01:07:16]} {[%emt 00:01:35]} Bc8 {[%clk 00:42:56]}
{[%emt 00:02:49]} 22. Ke2 {[%clk 01:06:11]} {[%emt 00:01:33]} Bd6 {[%clk
00:42:03]} {[%emt 00:01:25]} 23. Bxd6 {[%clk 01:05:02]} {[%emt 00:01:39]} Rxd6
{[%clk 00:41:57]} {[%emt 00:00:36]} 24. g3 {[%clk 01:01:58]} {[%emt 00:03:34]}
Kf7 {[%clk 00:41:37]} {[%emt 00:00:49]} 25. Na1 {[%clk 01:01:48]} {[%emt
00:00:40]} Na5 {[%clk 00:39:41]} {[%emt 00:02:26]} 26. Rf1+ {[%clk 01:01:09]}
{[%emt 00:01:09]} Ke7 {[%clk 00:39:56]} {[%emt 00:00:16]} 27. Rf4 {[%clk
01:00:40]} {[%emt 00:00:58]} Bd7 {[%clk 00:38:37]} {[%emt 00:01:50]} 28. Rxe4
{[%clk 01:00:04]} {[%emt 00:01:05]} Bc6 {[%clk 00:38:35]} {[%emt 00:00:33]} 29.
Re5 {[%clk 00:58:23]} {[%emt 00:02:09]} b6 {[%clk 00:36:08]} {[%emt 00:02:59]}
30. Bf3 {[%clk 00:55:56]} {[%emt 00:02:56]} Bxf3+ {[%clk 00:34:53]} {[%emt
00:01:45]} 31. Kxf3 {[%clk 00:56:24]} {[%emt 00:00:03]} Rd5 {[%clk 00:35:02]}
{[%emt 00:00:19]} 32. Rxd5 {[%clk 00:53:52]} {[%emt 00:03:04]} exd5 {[%clk
00:35:16]} {[%emt 00:00:16]} 33. e4 {[%clk 00:53:38]} {[%emt 00:00:42]} dxe4+
{[%clk 00:35:13]} {[%emt 00:00:34]} 34. Kxe4 {[%clk 00:54:07]} {[%emt
00:00:02]} Ke6 {[%clk 00:35:03]} {[%emt 00:00:40]} 35. Nc2 {[%clk 00:53:38]}
{[%emt 00:00:58]} Nb7 {[%clk 00:33:55]} {[%emt 00:01:39]} 36. g4 {[%clk
00:50:57]} {[%emt 00:03:10]} g5 {[%clk 00:30:19]} {[%emt 00:04:07]} 37. Ne3
{[%clk 00:47:35]} {[%emt 00:03:51]} Nd6+ {[%clk 00:30:27]} {[%emt 00:00:23]} 38.
Kf3 {[%clk 00:48:01]} {[%emt 00:00:03]} h6 {[%clk 00:27:11]} {[%emt 00:03:47]}
39. Nf1 {[%clk 00:47:03]} {[%emt 00:01:27]} Kd5 {[%clk 00:26:06]} {[%emt
00:01:35]} 40. Ng3 {[%clk 00:46:56]} {[%emt 00:00:37]} Ke6 {[%clk 00:23:48]}
{[%emt 00:02:49]} 41. Ke3 {[%clk 00:46:20]} {[%emt 00:01:05]} Kd5 {[%clk
00:23:52]} {[%emt 00:00:27]} 42. h3 {[%clk 00:45:09]} {[%emt 00:01:41]} Ke6
{[%clk 00:24:00]} {[%emt 00:00:22]} 43. Ne4 {[%clk 00:44:46]} {[%emt 00:00:52]}
Nc8 {[%clk 00:23:33]} {[%emt 00:00:58]} 44. Kf3 {[%clk 00:44:59]} {[%emt
00:00:17]} Ne7 {[%clk 00:23:31]} {[%emt 00:00:32]} 45. Ng3 {[%clk 00:43:45]}
{[%emt 00:01:44]} Kd5 {[%clk 00:23:09]} {[%emt 00:00:52]} 46. Nh5 {[%clk
00:42:17]} {[%emt 00:01:57]} Ng6 {[%clk 00:20:50]} {[%emt 00:02:51]} 47. Ke3
{[%clk 00:42:26]} {[%emt 00:00:21]} Nf8 {[%clk 00:19:23]} {[%emt 00:01:57]} 48.
Ng3 {[%clk 00:39:08]} {[%emt 00:03:47]} Ng6 {[%clk 00:18:37]} {[%emt 00:01:16]}
49. Ne2 {[%clk 00:39:20]} {[%emt 00:00:16]} Ne7 {[%clk 00:18:18]} {[%emt
00:00:51]} 50. Kf3 {[%clk 00:35:18]} {[%emt 00:04:31]} Ng6 {[%clk 00:18:12]}
{[%emt 00:00:37]} 51. Ke3 {[%clk 00:34:27]} {[%emt 00:01:20]} Ne7 {[%clk
00:18:29]} {[%emt 00:00:14]} 52. Ng3 {[%clk 00:34:16]} {[%emt 00:00:41]} Ng6
{[%clk 00:17:41]} {[%emt 00:01:18]} 53. Nh5 {[%clk 00:34:31]} {[%emt 00:00:15]}
Ne7 {[%clk 00:17:19]} {[%emt 00:00:52]} 54. Ng3 {[%clk 00:29:37]} {[%emt
00:05:24]} Ng6 {[%clk 00:17:12]} {[%emt 00:00:36]} 55. Nh1 {[%clk 00:28:38]}
{[%emt 00:01:27]} Nf4 {[%clk 00:17:15]} {[%emt 00:00:30]} 56. Nf2 {[%clk
00:29:03]} {[%emt 00:00:04]} Ng6 {[%clk 00:17:22]} {[%emt 00:00:24]} 57. Kf3
{[%clk 00:27:04]} {[%emt 00:02:28]} Nh4+ {[%clk 00:17:33]} {[%emt 00:00:20]} 58.
Kg3 {[%clk 00:26:46]} {[%emt 00:00:47]} Ng6 {[%clk 00:17:55]} {[%emt 00:00:08]}
59. Kf3 {[%clk 00:26:21]} {[%emt 00:00:55]} Nh4+ {[%clk 00:18:18]} {[%emt
00:00:08]} 60. Ke3 {[%clk 00:25:16]} {[%emt 00:01:31]} Ng2+ {[%clk 00:18:35]}
{[%emt 00:00:17]} 61. Kd2 {[%clk 00:25:29]} {[%emt 00:00:14]} Nf4 {[%clk
00:18:46]} {[%emt 00:00:22]} 62. Kc2 {[%clk 00:25:52]} {[%emt 00:00:06]} Ke6
{[%clk 00:17:51]} {[%emt 00:01:26]} 63. b3 {[%clk 00:25:55]} {[%emt 00:00:27]}
Kd5 {[%clk 00:17:49]} {[%emt 00:00:32]} 64. bxc4+ {[%clk 00:26:14]} {[%emt
00:00:11]} bxc4 {[%clk 00:18:02]} {[%emt 00:00:18]} 65. a4 {[%clk 00:26:37]}
{[%emt 00:00:06]} Ne2 {[%clk 00:17:07]} {[%emt 00:01:25]} 66. Kd2 {[%clk
00:26:21]} {[%emt 00:00:44]} Nf4 {[%clk 00:17:18]} {[%emt 00:00:20]} 67. Ke3
{[%clk 00:25:49]} {[%emt 00:01:00]} Ng2+ {[%clk 00:17:28]} {[%emt 00:00:23]} 68.
Kf3 {[%clk 00:25:41]} {[%emt 00:00:33]} Nh4+ {[%clk 00:17:51]} {[%emt
00:00:12]} 69. Ke2 {[%clk 00:24:56]} {[%emt 00:01:14]} Ng6 {[%clk 00:17:59]}
{[%emt 00:00:23]} 70. Ke3 {[%clk 00:24:02]} {[%emt 00:01:22]} Nf4 {[%clk
00:18:12]} {[%emt 00:00:19]} 71. Kf3 {[%clk 00:24:08]} {[%emt 00:00:20]} Ng6
{[%clk 00:18:26]} {[%emt 00:00:19]} 72. Kg3 {[%clk 00:22:20]} {[%emt 00:02:17]}
Nf4 {[%clk 00:18:38]} {[%emt 00:00:21]} 73. Kf3 {[%clk 00:22:31]} {[%emt
00:00:17]} Ng6 {[%clk 00:18:49]} {[%emt 00:00:20]} 74. Nd1 {[%clk 00:20:16]}
{[%emt 00:01:21]} Nh4+ {[%clk 00:18:41]} {[%emt 00:02:02]} 75. Ke2 {[%clk
00:20:07]} {[%emt 00:00:38]} Ng2 {[%clk 00:18:46]} {[%emt 00:00:26]} 76. Ne3+
{[%clk 00:20:29]} 1-0